bitfinex/quotes_SOLUSD_20250226
["timestamp","ask_amount","ask_price","bid_price","bid_amount"]
[1740553377417,0.063,142.48,142.43,7.8831]
[1740553377927,81.1,142.47,142.42,6.34]
[1740553380132,88.1191,142.47,142.42,6.34]
[1740553384429,81.1,142.47,142.43,0.12549]
[1740553385319,81.1,142.47,142.42,6.34]
[1740553385720,81.1,142.47,142.42,13.3613]
[1740553385915,81.1,142.47,142.42,6.34]
[1740553387547,88.1191,142.47,142.42,6.34]
[1740553388428,81.1,142.46,142.42,6.34]
[1740553389328,81.1,142.46,142.42,13.3614]
[1740553389734,81.1,142.46,142.42,6.34]
[1740553391731,81.1,142.46,142.42,13.3613]
[1740553392742,0.063,142.48,142.43,0.12549]
[1740553394447,0.063,142.48,142.44,4.17495863]
[1740553394629,0.063,142.47,142.44,4.17495863]
[1740553394828,0.063,142.47,142.45,7.02]
[1740553396249,0.063,142.47,142.43,7.14629]
[1740553396457,0.063,142.47,142.43,7.0208]
[1740553396639,0.063,142.47,142.42,13.3612]
[1740553396834,81.1,142.46,142.42,6.34]
[1740553397150,81.1,142.46,142.41,7.0518]
[1740553397823,81.1,142.46,142.43,4.18226419]
[1740553399650,0.063,142.47,142.42,0.25098]
[1740553400043,0.063,142.47,142.43,6.34]
[1740553400845,0.063,142.47,142.44,11.20508219]
[1740553401238,0.063,142.47,142.45,0.12549]
[1740553401838,0.063,142.47,142.46,19.90062886]
[1740553402455,0.063,142.47,142.46,20.90062886]
[1740553402653,0.063,142.47,142.46,25.08531105]
[1740553402951,0.03,142.52,142.51,0.12549]
[1740553403148,0.03,142.52,142.51,6.46549]
[1740553403349,0.03,142.52,142.51,6.59098]
[1740553403858,0.03,142.52,142.51,25.24062886]
[1740553404038,0.03,142.52,142.51,110.14062886]
[1740553405057,0.03,142.52,142.51,121.33475379]
[1740553405360,0.03,142.52,142.51,119.33475379]
[1740553405535,0.03,142.52,142.51,121.33475379]
[1740553408856,0.03,142.52,142.51,122.76500473]
[1740553409064,0.03,142.52,142.51,123.76500473]
[1740553409368,0.03,142.52,142.51,122.76500473]
[1740553409570,0.03,142.52,142.51,123.76500473]
[1740553409741,0.03,142.52,142.51,122.76500473]
[1740553410670,0.03,142.52,142.51,123.76500473]
[1740553410972,0.03,142.52,142.51,122.76500473]
[1740553411153,0.03,142.52,142.51,123.76500473]
[1740553411473,0.03,142.52,142.51,122.76500473]
[1740553413162,0.03,142.52,142.51,17.53412493]
[1740553413586,0.03,142.52,142.51,17.65961493]
[1740553413791,0.03,142.52,142.51,13.48249]
[1740553415169,0.03,142.52,142.51,32.25762886]
[1740553416967,0.03,142.52,142.51,34.25762886]
[1740553417787,81.1,142.57,142.54,0.12549]
[1740553418083,0.063,142.58,142.54,0.12549]
[1740553418660,0.063,142.58,142.56,0.12549]
[1740553418865,0.063,142.58,142.57,7.13949]
[1740553419472,0.063,142.58,142.57,25.91462886]
[1740553421076,0.0001,142.58,142.57,27.91462886]
[1740553422283,0.0001,142.63,142.62,18.77513886]
[1740553422475,0.0001,142.63,142.62,26.11513886]
[1740553422784,0.0001,142.63,142.62,25.11513886]
[1740553422985,0.0001,142.63,142.62,25.24062886]
[1740553423181,0.0001,142.63,142.62,32.25222886]
[1740553427178,0.0001,142.63,142.62,13.3516]
[1740553427580,0.0001,142.63,142.62,6.34]
[1740553428273,0.0001,142.63,142.58,6.46549]
[1740553428467,81.1001,142.63,142.58,6.46549]
[1740553428683,81.1,142.62,142.58,6.34]
[1740553430385,81.1,142.61,142.55,6.32]
[1740553431287,7.0126,142.6,142.55,6.32]
[1740553432694,81.1,142.59,142.55,6.32]
[1740553432894,81.1,142.58,142.53,137.10139]
[1740553433083,81.1,142.58,142.53,143.42139]
[1740553434995,81.1,142.58,142.53,143.2959]
[1740553435177,88.1136,142.58,142.53,143.2959]
[1740553435377,81.1,142.57,142.53,143.2959]
[1740553437176,81.1,142.57,142.53,136.28]
[1740553439195,81.1,142.57,142.53,143.2956]
[1740553439377,89.1456,142.62,142.54,19.90062886]
[1740553439577,81.1,142.61,142.54,20.90062886]
[1740553439791,0.0001,142.63,142.58,0.12549]
[1740553439979,0.0001,142.63,142.59,6.34]
[1740553443184,0.0001,142.63,142.59,13.353]
[1740553443800,80.9982915,142.64,142.59,13.353]
[1740553444501,80.9982915,142.63,142.59,13.353]
[1740553444912,80.9982915,142.63,142.59,6.34]
[1740553445486,88.0094915,142.63,142.59,6.34]
[1740553446191,88.0094915,142.63,142.57,20.0]
[1740553446380,88.0094915,142.63,142.53,130.023]
[1740553446381,80.9982915,142.62,142.53,130.023]
[1740553446582,7.0112,142.63,142.53,143.3589]
[1740553446583,7.8101,142.6,142.53,143.3589]
[1740553446803,80.9982915,142.59,142.53,136.343]
[1740553446993,80.9982915,142.58,142.53,0.063]
[1740553449094,80.9982915,142.58,142.53,0.18849]
[1740553449407,80.9982915,142.58,142.53,7.20409]
[1740553449981,80.9982915,142.58,142.53,7.0786]
[1740553450509,80.9982915,142.57,142.53,7.0786]
[1740553451387,80.9982915,142.57,142.53,0.18849]
[1740553452102,80.9982915,142.61,142.54,1.25098]
[1740553452319,80.9982915,142.61,142.56,0.25098]
[1740553452488,80.9982915,142.63,142.58,0.12549]
[1740553453196,80.9982915,142.63,142.6,0.12549]
[1740553453401,80.9982915,142.66,142.61,7.0121]
[1740553453600,80.9982915,142.65,142.61,7.0121]
[1740553454417,80.9982915,142.65,142.59,7.0126]
[1740553454921,0.03,142.63,142.59,7.0126]
[1740553455201,0.03,142.63,142.58,7.13899]
[1740553455401,0.03,142.63,142.58,7.0135]
[1740553456814,0.03,142.63,142.57,6.32]
[1740553457003,80.9982915,142.62,142.57,6.32]
[1740553457314,80.9982915,142.61,142.57,6.32]
[1740553458302,80.9982915,142.6,142.57,6.32]
[1740553458699,80.9982915,142.59,142.54,7.0154]
[1740553458900,80.9982915,142.58,142.53,13.3989]
[1740553460509,80.9982915,142.57,142.53,0.063]
[1740553461089,80.9982915,142.57,142.53,7.20419]
[1740553461985,80.9982915,142.56,142.53,0.063]
[1740553462210,20.17044886,142.61,142.53,0.063]
[1740553462211,80.9982915,142.55,142.53,0.063]
[1740553463388,20.0,142.51,142.47,0.03]
[1740553463707,80.9982915,142.5,142.47,0.03]
[1740553463898,80.9982915,142.49,142.47,0.03]
[1740553465892,88.0162915,142.49,142.47,0.03]
[1740553466206,80.9982915,142.49,142.47,0.03]
[1740553468097,80.9982915,142.48,142.47,0.03]
[1740553468309,27.0171,142.51,142.47,0.03]
[1740553468511,81.1,142.5,142.47,0.03]
[1740553469412,88.1178,142.5,142.47,0.03]
[1740553469718,20.0,142.48,142.47,0.03]
[1740553471620,27.0185,142.48,142.47,0.03]
[1740553471994,45.79363886,142.48,142.47,0.03]
[1740553472201,53.71573886,142.48,142.47,0.03]
[1740553473320,53.84122886,142.48,142.47,0.03]
[1740553475106,34.9406,142.48,142.47,0.03]
[1740553475421,35.06609,142.48,142.47,0.03]
[1740553475626,53.84122886,142.48,142.47,0.03]
[1740553475801,54.84122886,142.48,142.47,0.03]
[1740553476326,58.36314849,142.48,142.47,0.03]
[1740553476721,57.36314849,142.48,142.47,0.03]
[1740553476916,34.9406,142.48,142.47,0.03]
[1740553477522,8.6116,142.48,142.47,0.03]
[1740553478101,9.73709,142.48,142.47,0.0001]
[1740553478914,10.73709,142.48,142.47,0.0001]
[1740553482103,0.25098,142.45,142.41,0.03]
[1740553482309,20.0,142.42,142.41,0.03]
[1740553484130,27.0214,142.42,142.41,0.03]
[1740553489429,44.5751,142.42,142.38,0.063]
[1740553489807,0.12549,142.41,142.38,0.063]
[1740553490008,81.1,142.4,142.38,0.063]
[1740553490225,83.85563757,142.4,142.38,0.063]
[1740553490902,7.0229,142.39,142.38,0.063]
[1740553491106,7.14839,142.39,142.38,0.063]
[1740553491314,25.79803886,142.39,142.38,0.0001]
[1740553492716,25.92352886,142.39,142.38,0.0001]
[1740553495131,29.50567131,142.39,142.38,0.0001]
[1740553496130,10.85602245,142.39,142.38,0.0001]
[1740553496438,29.50567131,142.39,142.38,0.0001]
[1740553497316,31.50567131,142.39,142.38,0.0001]
[1740553499909,31.50567131,142.39,142.33,0.063]
[1740553499910,20.12549,142.35,142.32,0.063]
[1740553500112,0.12549,142.33,142.32,0.063]
[1740553500313,20.0,142.31,142.29,0.063]
[1740553500653,81.1,142.3,142.29,0.063]
[1740553501119,0.12549,142.29,142.28,0.03]
[1740553501439,0.12549,142.29,142.27,0.03]
[1740553501440,99.74964886,142.28,142.27,0.03]
[1740553501737,18.64964886,142.28,142.27,0.03]
[1740553502111,25.80343886,142.28,142.27,0.03]
[1740553502432,28.43473886,142.28,142.27,0.03]
[1740553502614,27.43473886,142.28,142.27,0.03]
[1740553504028,27.56022886,142.28,142.27,0.03]
[1740553504816,6.34,142.29,142.27,0.03]
[1740553506549,7.0274,142.3,142.27,0.03]
[1740553507110,0.25098,142.29,142.27,0.03]
[1740553507315,18.90062886,142.29,142.27,0.03]
[1740553507842,19.90062886,142.29,142.27,0.03]
[1740553508439,18.90062886,142.29,142.27,0.03]
[1740553508653,20.0,142.28,142.27,0.03]
[1740553509243,27.0283,142.28,142.27,0.03]
[1740553510225,27.15379,142.28,142.27,0.03]
[1740553511938,0.12549,142.26,142.23,0.03]
[1740553512238,0.25098,142.24,142.23,0.03]
[1740553512943,20.12549,142.24,142.23,0.03]
[1740553513117,20.0,142.24,142.23,0.03]
[1740553513319,20.12549,142.24,142.23,0.03]
[1740553513626,27.28128,142.24,142.23,0.03]
[1740553515141,45.93092886,142.24,142.23,0.03]
[1740553515336,20.12549,142.21,142.2,0.4620332]
[1740553515719,0.25098,142.21,142.2,0.4620332]
[1740553515924,0.25098,142.21,142.2,3.32e-05]
[1740553515925,19.90062886,142.21,142.2,3.32e-05]
[1740553516529,21.68823533,142.21,142.2,3.32e-05]
[1740553516724,22.68823533,142.21,142.2,3.32e-05]
[1740553516925,22.68823533,142.21,142.12,6.4607]
[1740553516926,20.0,142.17,142.12,6.4607]
[1740553517121,0.12549,142.16,142.12,0.03]
[1740553517339,7.0348,142.15,142.12,0.03]
[1740553519036,20.12549,142.13,142.12,0.03]
[1740553519241,27.16129,142.13,142.12,0.03]
[1740553520441,27.28678,142.13,142.12,0.03]
[1740553521031,7.0351,142.15,142.12,0.03]
[1740553521231,20.0,142.13,142.12,0.03]
[1740553521852,7.15979,142.16,142.12,0.03]
[1740553522452,7.0333,142.18,142.12,0.03]
[1740553522833,0.12549,142.17,142.12,0.03]
[1740553523239,81.1,142.15,142.12,0.03]
[1740553523639,81.1,142.15,142.13,6.4387]
[1740553524234,81.1,142.14,142.13,6.4387]
[1740553526353,81.1,142.14,142.13,13.4745]
[1740553526771,81.1,142.14,142.13,6.4387]
[1740553527361,81.1,142.14,142.13,13.4745]
[1740553528852,81.1,142.14,142.13,6.4387]
[1740553529093,81.1,142.14,142.12,0.03]
[1740553529234,81.1,142.13,142.12,0.03]
[1740553530640,7.0356,142.14,142.12,0.03]
[1740553530840,17.5859,142.16,142.12,0.03]
[1740553531047,0.12549,142.15,142.12,0.03]
[1740553533156,7.0353,142.14,142.12,0.03]
[1740553534961,81.22549,142.13,142.12,0.03]
[1740553535164,7.16129,142.13,142.12,0.03]
[1740553536958,7.28678,142.13,142.12,0.03]
[1740553537659,0.12549,142.12,142.05,7.8391]
[1740553537957,18.90062886,142.12,142.05,7.8391]
[1740553538658,0.12549,142.12,142.05,7.8391]
[1740553540060,7.16179,142.12,142.05,7.8391]
[1740553541159,7.0351,142.15,142.05,7.8391]
[1740553541350,81.1,142.11,142.08,20.0]
[1740553541558,81.1,142.1,142.08,20.0]
[1740553541856,81.1,142.1,142.05,7.8391]
[1740553542043,81.1,142.09,142.05,7.8391]
[1740553542442,81.1,142.09,142.05,14.8787]
[1740553543558,81.1,142.08,142.05,7.8391]
[1740553543864,81.1,142.07,142.05,7.8391]
[1740553544441,81.1,142.07,142.05,14.8786]
[1740553544962,81.1,142.12,142.05,14.8786]
[1740553545160,81.1,142.11,142.05,14.8786]
[1740553546042,81.1,142.11,142.06,18.77513886]
[1740553546242,81.1,142.11,142.07,6.34]
[1740553547368,81.1,142.11,142.08,7.0382]
[1740553552172,81.1,142.11,142.08,7.0682]
[1740553553572,0.063,142.12,142.09,18.77513886]
[1740553553750,0.063,142.12,142.1,1.594]
[1740553554265,0.063,142.12,142.11,7.0368]
[1740553554465,0.063,142.12,142.11,32.43983886]
[1740553554970,0.063,142.12,142.11,13.6647]
[1740553556573,0.063,142.12,142.11,17.85603259]
[1740553557068,0.063,142.12,142.11,10.81923259]
[1740553557279,0.063,142.12,142.11,4.19133259]
[1740553557452,81.163,142.12,142.11,4.19133259]
[1740553558479,81.163,142.12,142.09,4.19133259]
[1740553560173,81.163,142.12,142.09,11.22903259]
[1740553560675,81.163,142.12,142.09,4.19133259]
[1740553560875,81.1,142.11,142.09,4.19133259]
[1740553561062,7.0372,142.1,142.09,4.19133259]
[1740553561263,7.0372,142.1,142.08,0.03]
[1740553561468,81.1,142.09,142.08,0.03]
[1740553562066,7.0372,142.1,142.08,0.03]
[1740553562265,8.7018,142.1,142.08,0.03]
[1740553563889,7.0377,142.09,142.08,0.03]
[1740553564460,10.70520544,142.09,142.08,0.03]
[1740553566278,0.12549,142.08,142.03,4.19982261]
[1740553566971,0.12549,142.08,142.0,6.4895]
[1740553567365,0.12549,142.08,142.0,13.5315]
[1740553567659,10.70520544,142.09,142.0,13.5315]
[1740553567860,81.1,142.07,142.0,13.5315]
[1740553568067,81.1,142.07,142.0,32.1371]
[1740553568468,81.1,142.07,142.0,13.5315]
[1740553568771,81.1,142.07,142.01,4.1934828]
[1740553570386,81.1,142.07,142.02,7.0412]
[1740553572269,81.1,142.07,142.04,7.0402]
[1740553573691,81.1,142.07,142.02,25.81633886]
[1740553574673,81.1,142.07,142.01,7.0417]
[1740553574979,81.1,142.06,142.01,7.0417]
[1740553575678,81.1,142.06,142.02,0.03]
[1740553576695,81.1,142.06,142.02,4.22052681]
[1740553577978,81.1,142.05,142.02,4.22052681]
[1740553579298,81.1,142.05,142.02,11.26172681]
[1740553579501,81.1,142.09,142.04,18.77513886]
[1740553579806,81.1,142.09,142.05,6.34]
[1740553580801,81.1,142.09,142.05,13.3796]
[1740553584094,81.1,142.08,142.05,13.3796]
[1740553586494,81.1,142.08,142.06,19.77513886]
[1740553586689,81.1,142.08,142.06,26.08783886]
[1740553586891,81.163,142.12,142.06,26.08783886]
[1740553587089,81.163,142.12,142.06,27.08783886]
[1740553587496,0.063,142.09,142.07,4.18942738]
[1740553587696,0.063,142.09,142.08,7.0382]
[1740553588907,0.063,142.09,142.08,25.81333886]
[1740553589209,0.063,142.09,142.08,31.12825624]
[1740553590302,0.063,142.09,142.08,32.12825624]
[1740553593007,0.063,142.12,142.11,18.77513886]
[1740553593315,0.063,142.12,142.11,25.11513886]
[1740553594413,0.063,142.12,142.11,6.34]
[1740553594910,0.063,142.12,142.11,10.52942738]
[1740553595111,0.063,142.12,142.11,17.56622738]
[1740553596420,0.063,142.12,142.11,13.3768]
[1740553597319,0.063,142.12,142.11,6.34]
[1740553597530,81.163,142.12,142.07,7.0387]
[1740553597737,81.163,142.12,142.08,6.34]
[1740553598400,81.163,142.12,142.09,18.77513886]
[1740553598626,0.063,142.12,142.09,18.77513886]
[1740553599229,0.063,142.12,142.09,18.80513886]
[1740553599526,0.063,142.12,142.1,4.17501559]
[1740553600026,0.063,142.12,142.11,18.77513886]
[1740553601001,0.063,142.12,142.11,25.81193886]
[1740553601511,0.063,142.12,142.11,4.17501559]
[1740553603440,0.063,142.12,142.09,7.0676]
[1740553604533,0.063,142.12,142.09,0.03]
[1740553610734,81.1,142.11,142.09,0.03]
[1740553611734,81.1,142.1,142.09,0.03]
[1740553621842,88.1372,142.1,142.09,0.03]
[1740553622047,7.0372,142.1,142.09,0.03]
[1740553623044,7.0368,142.11,142.09,0.03]
[1740553628238,0.12549,142.1,142.09,0.03]
[1740553628747,0.25098,142.1,142.09,0.03]
[1740553628918,0.25098,142.1,142.09,0.0001]
[1740553629331,20.0,142.07,142.03,4.20293062]
[1740553629729,81.1,142.06,142.03,4.20293062]
[1740553630744,81.1,142.06,142.02,0.03]
[1740553634535,81.1,142.05,142.02,0.03]
[1740553634735,81.1,142.04,142.02,0.03]
[1740553634948,81.1,142.04,142.03,0.03]
[1740553644456,88.1402,142.04,142.03,0.03]
[1740553645355,7.0402,142.04,142.03,0.03]
[1740553646467,2.85155992,142.06,142.03,0.03]
[1740553646468,7.0397,142.05,142.03,0.03]
[1740553648662,20.0,142.04,142.03,0.03]
[1740553649944,27.0402,142.04,142.03,0.03]
[1740553651468,27.16569,142.04,142.03,0.03]
[1740553651846,30.65637201,142.04,142.03,0.03]
[1740553653474,32.31407201,142.04,142.03,0.03]
[1740553653652,32.31407201,142.04,142.02,0.03]
[1740553654268,0.12549,142.03,142.02,0.03]
[1740553655241,25.81583886,142.03,142.02,0.03]
[1740553656267,7.16619,142.03,142.02,0.03]
[1740553657367,7.29168,142.03,142.02,0.03]
[1740553664771,7.0407,142.03,142.02,0.03]
[1740553666051,20.0,142.03,142.02,0.03]
[1740553667081,27.0407,142.03,142.02,0.03]
[1740553668963,7.0397,142.05,142.02,0.03]
[1740553670670,7.0387,142.07,142.02,0.03]
[1740553671376,0.063,142.03,142.02,0.03]
[1740553674058,0.063,142.03,142.02,1.6493]
[1740553676175,0.063,142.03,142.02,28.6905]
[1740553676477,0.063,142.03,142.02,53.80563886]
[1740553680255,0.063,142.09,142.03,0.12549]
[1740553680256,81.163,142.09,142.03,0.12549]
[1740553680461,81.163,142.09,142.06,20.0]
[1740553680770,81.163,142.09,142.07,1.5645]
[1740553684465,81.163,142.09,142.07,8.6032]
[1740553684867,0.063,142.09,142.07,8.6032]
[1740553685087,0.063,142.09,142.08,6.5307]
[1740553686271,0.063,142.09,142.08,13.5689]
[1740553686582,0.063,142.09,142.08,32.34403886]
[1740553687169,0.063,142.09,142.08,32.46952886]
[1740553687365,0.063,142.1,142.09,19.77513886]
[1740553687569,0.063,142.1,142.09,19.90062886]
[1740553688188,0.063,142.1,142.09,0.25098]
[1740553688380,0.063,142.1,142.09,7.28868]
[1740553688764,0.063,142.1,142.08,13.5689]
[1740553688971,0.063,142.1,142.08,6.5307]
[1740553689372,0.063,142.1,142.07,97.8429]
[1740553689373,0.063,142.1,142.07,7.9045]
[1740553689789,0.063,142.1,142.07,6.34]
[1740553690088,81.1,142.09,142.07,6.34]
[1740553691397,81.1,142.09,142.04,6.0882]
[1740553691576,81.1,142.08,142.04,12.4282]
[1740553692092,81.1,142.08,142.04,19.4684]
[1740553692278,81.1,142.08,142.05,18.77513886]
[1740553692479,81.1,142.08,142.05,25.81453886]
[1740553694409,0.063,142.1,142.08,18.77513886]
[1740553695199,0.063,142.1,142.09,25.11513886]
[1740553697001,0.063,142.1,142.09,33.27832886]
[1740553697179,0.0001,142.1,142.09,40.29102886]
[1740553697801,0.0001,142.1,142.09,123.19102886]
[1740553698600,0.0001,142.1,142.09,144.38102886]
[1740553698789,0.0001,142.1,142.09,123.19102886]
[1740553699205,0.0001,142.12,142.11,22.52132886]
[1740553699499,0.0001,142.12,142.11,105.42132886]
[1740553700285,0.0001,142.12,142.11,112.45812886]
[1740553701492,0.0001,142.12,142.11,113.51302091]
[1740553702095,0.0001,142.12,142.11,112.45812886]
[1740553704217,0.063,142.18,142.11,112.45812886]
[1740553704218,0.063,142.18,142.17,18.77513886]
[1740553704501,81.1,142.22,142.18,0.25098]
[1740553704692,81.163,142.24,142.18,1.25098]
[1740553706191,0.063,142.24,142.21,0.12549]
[1740553706401,0.063,142.24,142.23,18.77513886]
[1740553707309,0.063,142.24,142.23,25.80593886]
[1740553707803,0.063,142.24,142.23,25.93142886]
[1740553708187,0.063,142.24,142.23,25.80593886]
[1740553709793,0.063,142.24,142.23,25.93142886]
[1740553709987,0.063,142.25,142.24,19.77513886]
[1740553710186,0.063,142.25,142.24,18.77513886]
[1740553710393,0.063,142.25,142.24,18.90062886]
[1740553712087,0.063,142.25,142.24,25.93092886]
[1740553712501,0.063,142.25,142.24,25.80543886]
[1740553712702,0.063,142.25,142.23,7.0308]
[1740553713015,0.063,142.25,142.21,7.0316]
[1740553713223,0.063,142.25,142.21,6.32]
[1740553714107,81.163,142.25,142.21,6.32]
[1740553718029,88.1929,142.25,142.19,25.80773886]
[1740553718233,89.7451,142.25,142.19,32.12773886]
[1740553719415,89.7451,142.25,142.21,0.03]
[1740553719616,81.1,142.24,142.21,0.03]
[1740553719941,8.6451,142.25,142.21,0.03]
[1740553719942,87.4156,142.23,142.21,0.03]
[1740553720105,81.1,142.22,142.21,0.03]
[1740553720419,1.5181,142.22,142.12,7.0361]
[1740553720623,81.1,142.21,142.12,0.12549]
[1740553720818,81.1,142.2,142.11,13.3566]
[1740553721411,83.89687415,142.2,142.11,13.3566]
[1740553721610,7.0328,142.19,142.11,13.3566]
[1740553721917,81.1,142.18,142.11,13.3566]
[1740553722230,81.1,142.18,142.12,0.12549]
[1740553722701,81.1,142.18,142.13,7.0358]
[1740553723233,81.1,142.18,142.12,7.16159]
[1740553726714,81.1,142.17,142.12,7.16159]
[1740553728018,81.1,142.19,142.14,0.12549]
[1740553728220,88.132,142.21,142.14,0.12549]
[1740553729339,81.1,142.21,142.15,7.0348]
[1740553731930,81.163,142.21,142.15,7.0348]
[1740553732550,81.1,142.2,142.15,7.0348]
[1740553733051,81.08,142.2,142.15,7.0348]
[1740553734147,80.9044,142.2,142.15,7.0348]
[1740553735946,80.9044,142.2,142.13,0.03]
[1740553737658,87.9367,142.2,142.13,7.0656]
[1740553738547,7.0333,142.18,142.13,7.0656]
[1740553740457,7.0333,142.18,142.13,0.03]
[1740553740670,80.9044,142.17,142.13,0.03]
[1740553740961,1.5032,142.16,142.13,0.03]
[1740553741125,80.9044,142.15,142.13,0.03]
[1740553741770,80.9044,142.14,142.13,0.03]
[1740553742330,87.9397,142.14,142.13,0.03]
[1740553742524,7.0353,142.14,142.13,0.03]
[1740553744044,0.12549,142.13,142.09,0.03]
[1740553744252,7.0368,142.11,142.09,0.03]
[1740553747478,0.12549,142.1,142.09,0.03]
[1740553747851,7.0368,142.11,142.09,0.03]
[1740553749452,10.50581333,142.14,142.09,0.03]
[1740553749794,14.1581,142.16,142.09,0.03]
[1740553749955,21.1924,142.16,142.09,0.03]
[1740553752902,14.9364,142.16,142.09,0.03]
[1740553753062,33.5222,142.16,142.09,0.03]
[1740553753262,18.77513886,142.15,142.09,0.03]
[1740553753493,81.1,142.14,142.09,0.03]
[1740553754401,84.62305786,142.14,142.09,0.03]
[1740553754603,99.87513886,142.13,142.09,0.03]
[1740553754903,7.0387,142.07,142.03,0.03]
[1740553755071,81.1,142.06,142.03,0.03]
[1740553755605,81.1,142.05,142.03,0.03]
[1740553758897,81.1,142.08,142.03,0.03]
[1740553759702,81.1,142.07,142.03,0.03]
[1740553762103,81.1,142.07,142.03,26.571]
[1740553764123,81.1,142.07,142.03,33.6116]
[1740553764489,81.1,142.07,142.03,13.6116]
[1740553764721,81.1,142.07,142.03,33.6116]
[1740553767406,81.1,142.07,142.04,18.77513886]
[1740553768419,0.063,142.09,142.06,18.77513886]
[1740553768626,0.063,142.09,142.07,7.0387]
[1740553770903,0.063,142.09,142.06,7.0392]
[1740553771099,0.063,142.09,142.06,25.68884886]
[1740553772701,0.063,142.09,142.07,25.81383886]
[1740553775614,0.063,142.09,142.07,32.13383886]
[1740553777228,81.1,142.18,142.12,18.77513886]
[1740553777405,81.1,142.18,142.13,6.32]
[1740553778628,81.1,142.18,142.14,7.0353]
[1740553779833,81.1,142.18,142.14,18.77513886]
[1740553780933,81.1,142.18,142.13,6.32]
[1740553782324,88.1333,142.18,142.13,6.32]
[1740553783623,81.1,142.17,142.13,6.32]
[1740553786432,88.134,142.17,142.13,6.32]
[1740553788222,81.1,142.17,142.13,13.3555]
[1740553788725,81.1,142.17,142.13,6.32]
[1740553790121,88.1338,142.17,142.13,6.32]
[1740553792727,81.1,142.16,142.08,7.7282]
[1740553792923,81.1,142.15,142.08,14.0482]
[1740553793231,81.1,142.15,142.07,6.32]
[1740553793431,81.1,142.15,142.09,0.03]
[1740553794856,7.0353,142.14,142.09,0.03]
[1740553796750,23.75120168,142.17,142.09,0.03]
[1740553796751,81.1,142.13,142.09,0.03]
[1740553796949,81.1,142.12,142.09,0.03]
[1740553800453,88.1364,142.12,142.09,0.03]
[1740553800951,81.1,142.11,142.09,0.03]
[1740553801527,81.1,142.1,142.09,0.03]
[1740553801946,88.1372,142.1,142.09,0.03]
[1740553804152,81.1,142.1,142.09,0.03]
[1740553805843,81.163,142.1,142.09,0.03]
[1740553806351,0.063,142.1,142.09,25.12513886]
[1740553807363,0.063,142.1,142.09,32.16283886]
[1740553809433,0.063,142.1,142.09,41.47572886]
[1740553809639,0.063,142.1,142.09,42.47572886]
[1740553809855,0.063,142.17,142.13,18.77513886]
[1740553810647,0.063,142.17,142.14,6.32]
[1740553812156,0.063,142.17,142.1,89.22]
[1740553812358,81.1,142.16,142.1,6.32]
[1740553813160,81.1,142.16,142.11,25.81173886]
[1740553814048,88.1344,142.16,142.1,6.32]
[1740553815663,81.1,142.15,142.1,13.357]